bitfinex/quotes_ETHUSD_20240618
["timestamp","ask_amount","ask_price","bid_price","bid_amount"]
[1718695065108,4.21680489,3447.5,3446.5,0.3067962]
[1718695065304,4.21680489,3447.4,3446.5,0.3067962]
[1718695065507,2.10836965,3447.3,3446.5,0.3067962]
[1718695065703,3.0,3447.8,3446.5,0.3067962]
[1718695065916,4.21679792,3447.7,3446.5,0.3067962]
[1718695066243,7.21679792,3447.6,3446.6,0.33747582]
[1718695066442,4.21679792,3447.5,3446.6,0.33747582]
[1718695066657,4.21679792,3447.4,3446.6,0.33747582]
[1718695066945,2.10837914,3447.3,3446.6,0.33747582]
[1718695067107,3.0,3447.8,3446.6,0.33747582]
[1718695067308,4.21681429,3447.7,3446.6,0.33747582]
[1718695067525,5.10843595,3447.6,3446.6,0.33747582]
[1718695067727,2.10843595,3447.5,3446.6,0.33747582]
[1718695067926,4.21681295,3447.4,3446.6,0.33747582]
[1718695068238,3.0,3447.7,3446.6,0.33747582]
[1718695068442,4.21681066,3447.6,3446.6,0.33747582]
[1718695068754,4.21681066,3447.5,3446.6,0.33747582]
[1718695068948,2.10837632,3447.4,3446.7,0.26752758]
[1718695069262,3.0,3447.8,3446.7,0.26752758]
[1718695069561,4.21681045,3447.7,3446.7,0.26752758]
[1718695069756,7.21681045,3447.6,3446.7,0.26752758]
[1718695069946,4.21681045,3447.5,3446.7,0.26752758]
[1718695070140,2.10837541,3447.4,3446.4,2.3378]
[1718695070542,3.0,3447.7,3446.4,2.3378]
[1718695070763,4.21682715,3447.6,3446.4,2.3378]
[1718695070961,4.21682715,3447.5,3446.4,2.3378]
[1718695071264,2.10837981,3447.4,3446.4,2.3378]
[1718695071432,3.53194,3447.8,3445.5,2.3557]
[1718695071433,2.4187,3447.2,3445.5,2.3557]
[1718695071764,4.21721478,3447.1,3445.5,2.3557]
[1718695071959,2.10847886,3447.0,3445.5,2.3557]
[1718695072171,2.10873592,3446.9,3445.7,2.2591]
[1718695072359,2.10847886,3446.8,3445.7,2.2591]
[1718695072725,2.10890976,3446.7,3445.7,2.2591]
[1718695072930,3.0,3447.1,3445.7,2.2591]
[1718695073141,4.21788465,3447.0,3445.7,2.2591]
[1718695073429,4.21788465,3446.9,3445.8,0.299111]
[1718695073630,2.10891474,3446.8,3445.8,0.299111]
[1718695073861,3.0,3447.1,3445.8,0.299111]
[1718695074069,4.21789464,3447.0,3445.8,0.299111]
[1718695074246,4.21789464,3446.9,3446.0,2.3499]
[1718695074454,2.4187,3447.2,3446.0,2.3499]
[1718695074768,2.10888898,3447.1,3446.0,2.3499]
[1718695075062,7.21777808,3447.1,3446.0,2.3499]
[1718695075272,2.10888898,3447.0,3446.1,0.26789221]
[1718695075761,5.10888898,3447.0,3446.1,0.26789221]
[1718695075938,2.10888898,3446.9,3446.1,0.26789221]
[1718695076143,3.0,3447.1,3446.1,0.26789221]
[1718695076343,4.21781596,3447.0,3446.1,0.26789221]
[1718695076555,2.10888782,3446.9,3446.1,0.26789221]
[1718695076746,3.0,3447.1,3446.2,0.26177922]
[1718695076964,2.10888873,3447.0,3446.2,0.26177922]
[1718695077264,2.10888873,3446.9,3446.2,0.26177922]
[1718695077474,3.0,3447.1,3446.2,0.26177922]
[1718695077648,2.10887037,3447.0,3446.2,0.26177922]
[1718695077847,3.0,3447.1,3446.2,0.26177922]
[1718695078038,2.10887241,3447.0,3446.2,0.26177922]
[1718695078235,3.0,3447.1,3446.2,0.26177922]
[1718695078434,2.10887241,3447.0,3446.2,0.26177922]
[1718695078637,3.0,3447.1,3446.2,0.26177922]
[1718695078955,2.10887615,3447.0,3446.2,0.26177922]
[1718695079159,5.10887615,3447.0,3446.2,0.26177922]
[1718695079464,3.0,3447.0,3446.2,0.26177922]
[1718695079672,3.54187,3447.1,3446.2,0.26177922]
[1718695079968,2.10886607,3447.0,3446.2,0.26177922]
[1718695080158,5.10886607,3447.0,3446.2,0.26177922]
[1718695080470,3.0,3447.0,3446.3,2.3563]
[1718695080666,3.0,3447.4,3446.3,2.3563]
[1718695080870,4.72180197,3447.3,3446.3,2.3563]
[1718695081069,7.2176798,3447.2,3446.3,2.3563]
[1718695081266,2.10883371,3447.1,3446.3,2.3563]
[1718695081740,3.0,3446.9,3445.7,2.3257]
[1718695082073,7.21773322,3446.8,3445.7,2.3257]
[1718695082370,2.3769,3446.6,3445.7,2.3257]
[1718695082684,4.21773322,3446.5,3445.7,2.3257]
[1718695082976,2.10883371,3446.4,3445.7,2.3257]
[1718695083175,3.0,3446.5,3445.7,2.3257]
[1718695083395,0.60150573,3446.5,3445.7,2.3257]
[1718695083540,3.60150573,3446.5,3445.7,2.3257]
[1718695084043,3.60150573,3446.5,3444.5,7.43]
[1718695084044,4.21864144,3446.4,3444.8,2.4223]
[1718695084381,5.10926501,3446.3,3444.8,2.4223]
[1718695084676,3.0,3446.2,3445.0,2.4473]
[1718695084986,0.50412217,3446.3,3445.0,2.4473]
[1718695086385,6.60150573,3446.5,3445.0,2.4473]
[1718695086678,4.2187923,3446.4,3445.0,2.4473]
[1718695086982,3.0,3446.3,3445.0,2.4473]
[1718695087179,3.50212166,3446.4,3445.0,2.4473]
[1718695087375,3.0,3446.4,3445.0,2.4473]
[1718695087559,0.94805274,3446.3,3445.1,0.268953]
[1718695087762,3.94805274,3446.3,3445.1,0.268953]
[1718695088192,3.0,3446.2,3445.1,0.268953]
[1718695088495,0.94805274,3446.3,3445.2,2.4438]
[1718695095188,3.01005274,3446.3,3445.2,2.4438]
[1718695095406,2.3151,3446.1,3445.2,2.4438]
[1718695095767,5.3151,3446.1,3445.2,2.4438]
[1718695096078,3.0,3446.0,3445.2,2.4438]
[1718695096916,3.0,3446.0,3444.1,2.90351]
[1718695096917,2.062,3445.9,3444.1,2.4506]
[1718695097074,2.3558,3445.8,3444.1,2.4506]
[1718695097275,0.60150573,3445.7,3444.3,2.4506]
[1718695097687,3.60150573,3445.7,3444.3,2.4506]
[1718695099919,3.0,3445.7,3444.5,2.2661]
[1718695100115,0.50234859,3446.0,3444.6,2.31095377]
[1718695100116,3.0,3446.0,3444.6,2.31095377]
[1718695101615,3.0,3446.0,3444.6,2.2529]
[1718695104741,0.50234859,3446.4,3444.7,2.55765382]
[1718695104899,7.93234859,3446.6,3445.3,2.4111]
[1718695105101,0.50234859,3447.0,3445.4,2.46913963]
[1718695105326,5.062,3447.0,3445.4,2.4111]
[1718695105596,4.21821886,3446.9,3445.4,2.4111]
[1718695105894,2.10909357,3446.8,3445.6,2.434]
[1718695106096,5.062,3447.0,3445.6,2.434]
[1718695106322,2.10913189,3446.9,3445.6,2.434]
[1718695106535,5.10913189,3446.9,3445.6,2.434]
[1718695106732,2.10913189,3446.8,3445.7,0.267511]
[1718695106894,5.10913189,3446.8,3445.7,0.267511]
[1718695107100,2.10913189,3446.7,3445.7,0.267511]
[1718695107464,5.10913189,3446.7,3445.7,0.267511]
[1718695107592,2.10913189,3446.6,3445.8,0.2701511]
[1718695108007,3.0,3446.9,3445.8,0.2701511]
[1718695108437,2.1091575,3446.8,3445.8,0.2701511]
[1718695114639,2.1091575,3446.8,3445.9,2.4728]
[1718695117757,2.1091575,3446.8,3445.6,0.86]
[1718695117758,2.1091575,3446.8,3446.0,0.86]
[1718695117961,2.1091575,3446.8,3446.1,2.3287]
[1718695119775,5.1091575,3446.8,3446.1,2.3287]
[1718695119991,2.1091575,3446.7,3446.1,2.3287]
[1718695120275,2.1091575,3446.6,3446.1,2.3287]
[1718695120578,2.1091575,3446.5,3446.1,2.3287]
[1718695120772,2.1091575,3446.4,3446.1,2.3287]
[1718695120972,2.1091575,3446.3,3446.1,2.3287]
[1718695121178,2.1091575,3446.2,3446.1,2.3287]
[1718695121364,2.1091575,3446.9,3446.1,2.3287]
[1718695121570,6.50236877,3446.9,3446.1,2.3287]
[1718695121739,2.1091575,3446.8,3446.1,2.3287]
[1718695121938,5.1091575,3446.8,3446.1,2.3287]
[1718695122172,2.1091575,3446.7,3446.1,2.3287]
[1718695122374,5.1091575,3446.7,3446.1,2.3287]
[1718695122673,2.1091575,3446.6,3446.1,2.3287]
[1718695123074,2.1091575,3446.5,3446.1,2.3287]
[1718695123374,2.1091575,3446.4,3446.1,2.3287]
[1718695123537,2.1091575,3446.3,3446.1,2.3287]
[1718695123751,2.1091575,3446.2,3446.1,2.3287]
[1718695123960,2.1091575,3446.7,3446.1,2.3287]
[1718695124287,2.1091575,3446.6,3446.1,2.3287]
[1718695124492,2.1091575,3446.5,3446.1,2.3287]
[1718695124650,2.1091575,3446.4,3446.1,2.3287]
[1718695124852,2.1091575,3446.3,3446.1,2.3287]
[1718695125167,2.1091575,3446.2,3446.1,2.3287]
[1718695125372,2.1091575,3446.7,3446.1,2.3287]
[1718695125561,2.1091575,3446.6,3446.1,2.3287]
[1718695125868,5.1091575,3446.6,3446.1,2.3287]
[1718695126069,2.1091575,3446.5,3446.1,2.3287]
[1718695126402,5.1091575,3446.5,3446.1,2.3287]
[1718695126572,2.1091575,3446.4,3446.1,2.3287]
[1718695126972,2.1091575,3446.3,3446.1,2.3287]
[1718695127280,3.0,3447.0,3446.1,2.3287]
[1718695127456,3.20214502,3446.9,3446.1,2.3287]
[1718695127658,5.10893375,3446.8,3446.1,2.3287]
[1718695127896,2.10893375,3446.7,3446.1,2.3287]
[1718695128663,3.0,3447.4,3446.3,2.4998]
[1718695128664,2.10874353,3446.6,3446.3,2.4998]
[1718695128970,3.50209993,3447.1,3446.3,2.75558322]
[1718695129300,2.10866162,3447.0,3446.5,2.4268]
[1718695129464,2.10866162,3446.9,3446.5,2.4268]
[1718695129661,0.50209993,3447.8,3446.5,2.4268]
[1718695130008,2.10857644,3447.1,3446.5,2.4268]
[1718695130296,2.10857644,3447.1,3446.7,2.3763]
[1718695130499,5.10857644,3447.1,3446.7,2.3763]
[1718695130795,2.10857644,3447.0,3446.7,2.3763]
[1718695130985,2.10857644,3446.9,3446.7,2.3763]
[1718695131311,3.5020398,3447.6,3446.7,2.3763]
[1718695131521,3.23142978,3447.5,3446.7,2.3763]
[1718695131701,5.10856937,3447.4,3446.7,2.3763]
[1718695132020,2.10856937,3447.3,3446.7,2.3763]
[1718695132215,2.10856937,3447.2,3446.7,2.3763]
[1718695132401,2.10856937,3447.1,3446.7,2.3763]
[1718695132717,3.5020398,3447.6,3446.7,2.3763]
[1718695132883,2.10855412,3447.5,3446.7,2.3763]
[1718695134890,2.10855412,3447.5,3446.8,2.400519]
[1718695135090,2.10855412,3447.5,3446.8,2.3425]
[1718695135296,2.10855412,3447.4,3446.8,2.3425]
[1718695135495,2.10855412,3447.3,3446.8,2.3425]
[1718695135698,3.0,3447.9,3446.9,0.23425]
[1718695136019,2.10849852,3447.8,3446.8,2.3425]
[1718695136219,2.10849852,3447.7,3446.8,2.3425]
[1718695136423,2.10849852,3447.6,3446.8,2.3425]
[1718695136580,2.10849852,3447.5,3446.8,2.3425]
[1718695136919,2.10849852,3447.4,3446.8,2.3425]
[1718695137127,2.10849852,3447.3,3446.9,0.23425]
[1718695137285,3.28962253,3448.0,3446.9,0.23425]
[1718695137483,2.10852726,3447.9,3446.8,2.3425]
[1718695139293,5.3203,3447.8,3446.8,2.3425]
[1718695139498,0.86,3447.2,3446.8,2.3425]
[1718695141924,0.86,3447.0,3445.5,2.4239]
[1718695142093,2.3136,3447.3,3446.0,2.4239]
[1718695142094,2.96863973,3446.9,3446.0,2.4239]
[1718695142288,0.86,3447.1,3446.1,0.91802996]
[1718695142492,2.10875378,3447.0,3446.2,2.322]
[1718695142719,5.10875378,3447.0,3446.2,2.6402]
[1718695142917,2.10875378,3446.9,3446.2,3.5002]
[1718695143227,5.10875378,3446.9,3446.2,3.5002]
[1718695143426,2.10875378,3446.8,3446.2,3.5002]
[1718695143586,3.0,3447.0,3446.2,2.6402]
[1718695143783,2.10880668,3446.9,3446.2,2.322]
[1718695144035,0.86,3447.1,3446.2,2.322]
[1718695144188,2.10876129,3447.0,3446.2,3.182]
[1718695144392,5.10876129,3447.0,3446.3,2.4312]
[1718695144728,2.10876129,3446.9,3446.5,2.3998]
[1718695145104,3.0,3447.2,3446.5,2.3998]
[1718695145105,2.10876129,3446.8,3446.5,2.3998]
[1718695145303,3.686,3447.2,3446.5,2.3998]
[1718695145505,2.1087731,3447.1,3446.5,2.3998]
[1718695145701,5.1087731,3447.1,3446.5,2.3998]
[1718695145902,2.1087731,3447.0,3446.5,2.3998]
[1718695146113,0.686,3447.2,3446.5,2.3998]
[1718695146114,2.1087731,3446.9,3446.5,2.3998]
[1718695146348,2.1087731,3446.8,3446.5,2.3998]
[1718695146634,2.1087731,3446.7,3446.5,2.3998]
[1718695146815,3.0,3447.1,3446.5,2.3998]
[1718695146984,2.10876636,3447.0,3446.5,2.3998]
[1718695147181,2.10876636,3446.9,3446.5,2.3998]
[1718695147408,2.10876636,3446.8,3446.5,2.3998]
[1718695147615,2.10876636,3446.7,3446.5,2.3998]
[1718695147954,3.0,3447.2,3446.5,2.3998]
[1718695148091,2.10876654,3447.1,3446.5,2.3998]
[1718695148433,5.10876654,3447.1,3446.5,2.3998]
[1718695148736,2.10876654,3447.0,3446.5,2.3998]
[1718695149027,2.10876654,3446.9,3446.5,2.3998]
[1718695149511,2.10876654,3446.8,3446.5,2.3998]
[1718695149718,2.10876654,3446.7,3446.5,2.3998]
[1718695150049,2.10876654,3446.6,3446.5,2.72578]
[1718695150329,2.10873572,3447.1,3446.5,2.72578]
[1718695150546,2.10873572,3447.0,3446.5,2.3998]
[1718695150688,2.10873572,3446.9,3446.5,2.3998]
[1718695150888,2.10873572,3446.8,3446.5,2.3998]
[1718695151088,2.10873572,3446.7,3446.5,2.3998]
[1718695151332,2.10873572,3446.6,3446.5,2.3998]
[1718695151499,2.10873572,3447.1,3446.5,2.72578]
[1718695151697,2.10873572,3447.1,3446.5,2.3998]
[1718695152390,2.10873572,3446.6,3446.0,2.4148]
[1718695152816,0.86,3446.9,3446.0,2.4148]
[1718695153875,2.10873572,3446.6,3446.0,3.2748]
[1718695154493,3.0,3446.8,3446.0,3.2748]
[1718695154807,0.86,3446.9,3446.0,3.2748]
[1718695155208,2.10873572,3446.6,3446.0,3.2748]
[1718695155411,0.86,3446.9,3446.0,3.60228]
[1718695155628,2.10873572,3446.6,3446.0,3.60228]
[1718695155990,3.0,3446.8,3446.0,3.60228]
[1718695156191,0.86,3446.9,3446.0,3.60228]
[1718695156192,2.10873572,3446.6,3446.0,3.60228]
[1718695156602,3.0,3446.8,3446.0,3.60228]
[1718695156818,0.86,3446.9,3446.0,3.60228]
[1718695157319,2.10873572,3446.6,3446.0,3.60228]
[1718695157883,3.0,3446.8,3446.0,3.60228]
[1718695158087,2.10873572,3446.6,3446.0,3.2748]
[1718695158288,3.0,3446.8,3446.0,3.2748]
[1718695158515,2.10873572,3446.6,3446.0,3.2748]
[1718695158715,2.10873572,3446.6,3446.0,2.4148]
[1718695159202,5.10873572,3446.6,3446.0,2.4148]
[1718695159398,3.0,3446.6,3446.0,2.4148]
[1718695159613,2.10873572,3446.6,3446.0,2.4148]
[1718695159812,5.10873572,3446.6,3446.0,2.4148]
[1718695161027,0.86,3446.5,3446.0,2.4148]
[1718695161190,3.86,3446.5,3446.0,2.4148]
[1718695164609,3.86,3446.5,3444.9,13.94059187]
[1718695164846,3.86,3446.5,3445.5,0.86]
[1718695165004,3.86,3446.5,3445.6,2.2676]
[1718695165207,3.0,3446.5,3445.6,2.2676]
[1718695165417,3.86,3446.5,3445.6,2.58036]
[1718695168644,3.86,3446.5,3445.7,0.86]
[1718695168824,3.86,3446.5,3445.8,2.4406]
[1718695169545,3.0,3446.5,3445.8,2.4406]
[1718695169734,5.10873572,3446.6,3445.8,2.4406]
[1718695170040,5.10873572,3446.6,3445.8,2.801936]
[1718695170247,2.10873572,3446.6,3445.8,2.801936]
[1718695170424,3.0,3446.5,3445.8,2.801936]
[1718695170628,5.10873572,3446.6,3445.9,0.86]
[1718695170823,2.10873572,3446.6,3446.5,3.2323]
[1718695171447,2.10873572,3446.6,3446.5,2.3723]
[1718695174859,2.10873572,3446.6,3446.5,3.2323]
[1718695192494,2.10873572,3446.6,3446.5,6.13379]
[1718695192686,2.10873572,3446.6,3446.5,7.037343]
[1718695192882,2.10873572,3446.6,3446.5,4.135853]
[1718695197381,2.10873572,3446.6,3446.5,3.275853]
[1718695197587,2.10873572,3446.6,3446.5,4.135853]
[1718695203680,2.10873572,3446.6,3446.2,2.4783]
[1718695203987,2.10873572,3446.6,3446.5,0.86]
[1718695204354,2.10873572,3446.6,3446.5,3.2411]
[1718695205481,2.10873572,3446.6,3446.5,6.14259]
[1718695206862,2.10873572,3446.6,3446.5,5.28259]
[1718695207192,2.10873572,3446.6,3446.5,6.961006]
[1718695216396,2.10873572,3446.6,3446.5,1.678416]
[1718695216772,2.10873572,3446.6,3446.5,4.579906]
[1718695216999,2.10873572,3446.6,3446.5,6.22629]
[1718695217800,2.10873572,3446.6,3446.5,9.12778]
[1718695218007,0.50208187,3447.3,3447.2,2.9009]
[1718695218202,0.50208187,3447.3,3447.2,4.578042]
[1718695218498,0.50208187,3447.3,3447.2,7.478942]
[1718695218683,0.50208187,3447.3,3447.2,9.821442]
[1718695219862,0.50208187,3447.3,3447.2,12.722342]
[1718695221265,3.01358827,3448.0,3447.9,2.90031]
[1718695221482,3.01358827,3448.0,3447.9,6.809484]
[1718695221684,3.01358827,3448.0,3447.9,9.709794]
[1718695223011,3.01358827,3448.0,3447.9,1.440074]
[1718695223314,3.01358827,3448.0,3447.2,3.068442]
[1718695223488,3.01358827,3448.0,3447.9,0.86]
[1718695224300,3.01358827,3448.0,3447.3,2.90079]
[1718695224500,3.01358827,3448.0,3447.2,0.817142]
[1718695224699,2.362,3447.9,3447.6,0.86]
[1718695225017,2.362,3447.9,3447.8,0.86]
[1718695225320,2.362,3447.9,3446.9,5.34607]
[1718695225527,2.362,3447.9,3447.5,0.86]
[1718695227886,2.362,3447.9,3447.7,0.86]
[1718695228520,3.01358827,3448.0,3447.7,0.86]
[1718695228721,3.01358827,3448.0,3447.9,0.86]
[1718695229454,3.01358827,3448.0,3447.8,2.11900678]
[1718695229625,3.01358827,3448.0,3447.9,0.21190068]
[1718695230250,3.01358827,3448.0,3447.9,3.11221068]
[1718695230468,3.01358827,3448.0,3447.9,5.40721068]
[1718695230747,3.01358827,3448.0,3447.9,8.30752068]
[1718695234111,3.01358827,3448.0,3447.9,11.20783068]
[1718695234925,3.01358827,3448.0,3447.9,5.40721068]
[1718695235126,3.01358827,3448.0,3447.9,5.17321068]
[1718695235436,3.01358827,3448.0,3447.9,8.07352068]
[1718695239441,3.01358827,3448.0,3447.9,3.11221068]
[1718695240568,3.01358827,3448.0,3447.6,2.3466]
[1718695240728,3.01358827,3448.0,3447.2,2.90088]
[1718695240729,3.01358827,3448.0,3447.0,0.824734]
[1718695240934,3.01358827,3448.0,3447.1,2.061]
[1718695241438,3.01358827,3448.0,3447.1,4.96196]
[1718695241647,3.01358827,3448.0,3447.5,2.061]
[1718695242368,3.01358827,3448.0,3447.6,0.0580024]
[1718695243349,2.4761,3448.2,3447.6,0.0580024]
[1718695243670,2.4761,3448.2,3447.7,0.50196424]
[1718695243969,2.4761,3448.2,3447.8,0.05799981]
[1718695245046,2.4761,3448.2,3447.7,0.50196424]
[1718695245564,2.4761,3448.2,3447.5,2.061]
[1718695247066,2.4761,3448.2,3447.6,0.05799983]
[1718695247247,2.4508,3448.7,3447.6,0.05799983]
[1718695257186,2.4508,3448.7,3447.5,4.96161]
[1718695259391,2.4508,3448.7,3447.6,0.0579971]
[1718695259566,2.4508,3448.7,3447.6,1.09060881]
[1718695263687,2.4508,3448.7,3448.3,0.859]
[1718695264204,2.4508,3448.7,3448.2,0.859]
[1718695268890,3.89639538,3448.9,3448.6,0.859]
[1718695269096,3.89639538,3448.9,3448.8,0.859]
[1718695271606,3.0,3449.6,3448.7,2.3639]
[1718695271809,2.4881,3449.7,3448.8,0.50037359]
[1718695273747,2.3116,3450.1,3449.0,2.06]
[1718695274060,2.3116,3450.1,3449.1,0.05797622]
[1718695274241,2.3116,3450.1,3449.0,2.06]
[1718695274550,2.3116,3450.1,3449.1,0.05797622]
[1718695274848,2.3116,3450.1,3448.8,0.44239]
[1718695275749,2.3116,3450.1,3448.9,0.05797911]
[1718695275934,5.3116,3450.1,3448.9,0.05797911]
[1718695276543,5.3116,3450.1,3449.0,2.89939]
[1718695276834,5.3116,3450.1,3449.1,0.68790631]
[1718695277917,5.3116,3450.1,3449.1,0.62993091]
[1718695278114,5.3116,3450.1,3448.8,3.34194]
[1718695278452,2.4275,3450.0,3448.8,0.44239]
[1718695278615,5.4275,3450.0,3448.8,0.44239]
[1718695278815,2.4275,3450.0,3448.8,0.44239]
[1718695280356,2.4275,3450.0,3448.9,0.05798114]
[1718695280655,2.4275,3450.0,3449.0,0.57639111]
[1718695281756,2.4275,3450.0,3449.1,0.05798111]
[1718695284062,2.4275,3450.0,3449.0,5.19397]
[1718695284361,2.4275,3450.0,3449.0,2.2946]
[1718695284545,2.4275,3450.0,3448.9,2.89946]
[1718695284744,2.4275,3450.0,3449.0,0.779135]
[1718695288763,2.4275,3450.0,3448.3,2.3612]
[1718695288935,2.2999,3449.9,3447.9,5.26149]
[1718695289156,2.2912,3449.8,3448.0,2.90022]
[1718695289757,3.0,3449.7,3447.8,2.06]
[1718695289927,2.4708,3449.5,3447.8,2.06]
[1718695290765,2.4708,3449.5,3447.8,4.96038]
[1718695291245,2.4708,3449.5,3447.6,5.3912]
[1718695291447,2.4708,3449.5,3447.7,2.90046]
[1718695293490,0.859,3449.1,3448.1,0.859]
[1718695293786,0.859,3448.4,3447.0,2.901]
[1718695293936,2.3273,3448.1,3447.1,0.51887]
[1718695294143,2.3273,3447.4,3446.0,3.8157876]
[1718695294361,2.3273,3447.4,3446.7,0.859]
[1718695295442,2.3273,3447.4,3446.3,2.90164]
[1718695295642,2.3273,3447.4,3446.4,0.786645]
[1718695299484,2.3273,3447.4,3446.4,3.688205]
[1718695299680,2.4316,3448.2,3446.6,4.96436]
[1718695300482,2.4316,3448.2,3446.9,2.90114]
[1718695300670,2.67476,3448.2,3447.0,0.290114]
[1718695300877,3.0,3448.1,3447.0,0.290114]
[1718695301247,3.0,3448.1,3447.1,0.05801336]
[1718695301449,2.4316,3448.2,3447.1,0.05801336]
[1718695302104,2.4316,3448.2,3447.0,0.290114]
[1718695302385,2.67476,3448.2,3447.0,0.290114]
[1718695302587,3.0,3448.1,3446.6,2.063]
[1718695302749,2.329,3448.0,3446.4,3.688195]
[1718695303605,2.329,3448.0,3446.5,2.90148]
[1718695306407,2.3679,3447.9,3446.4,0.786645]
[1718695306706,2.3679,3447.8,3446.0,3.2680436]
[1718695307179,2.3679,3447.7,3446.0,3.2680436]
[1718695307378,2.3679,3447.7,3446.1,2.90182]
[1718695309232,2.3679,3447.7,3446.2,2.90174]
[1718695309428,2.3679,3447.7,3446.3,0.61697536]
[1718695309618,2.3679,3447.7,3446.4,0.05802499]
[1718695310124,2.3679,3447.7,3446.4,2.95953499]
[1718695310814,2.3679,3447.7,3446.5,2.90147]
[1718695311164,2.3679,3447.7,3446.6,0.05801673]
[1718695311315,2.3679,3447.7,3446.7,0.73575867]
[1718695311656,2.3679,3447.7,3446.8,0.05801675]
[1718695311861,2.3679,3447.7,3446.8,2.90123]
[1718695312055,2.3679,3447.7,3446.7,0.73575867]
[1718695313652,2.3679,3447.7,3446.8,0.05801494]
[1718695313848,2.3679,3447.7,3446.9,0.36950936]
[1718695316349,2.3679,3447.7,3447.0,0.05801496]
[1718695316953,2.3679,3447.7,3446.9,0.36950936]
[1718695317248,2.3679,3447.7,3447.0,0.05801498]
[1718695317633,2.3679,3447.7,3446.9,0.36950936]
[1718695317933,2.3679,3447.7,3447.0,0.4006588]
[1718695321637,2.3679,3447.7,3446.7,0.73575867]
[1718695321853,2.3679,3447.7,3446.4,2.90157]
[1718695322055,2.3679,3447.7,3445.9,5.2541]
[1718695322244,2.3679,3447.7,3446.0,2.90185]
[1718695323876,2.3679,3447.7,3446.1,2.90182]
[1718695324341,2.3679,3447.7,3445.9,5.15607]
[1718695324544,2.4593,3447.5,3446.0,4.105816]
[1718695324743,2.4593,3447.5,3446.0,7.007726]
[1718695326082,2.4593,3447.5,3446.1,2.90181]
[1718695326790,2.3375,3447.4,3446.0,1.105816]
[1718695326983,2.3375,3447.4,3445.8,3.0]
[1718695327183,2.3375,3447.3,3445.7,3.0]
[1718695327696,2.3375,3447.3,3445.9,2.90199]
[1718695328487,2.3375,3447.3,3445.7,5.9021]
[1718695328689,2.3375,3447.3,3445.7,3.0]
[1718695328850,2.3375,3447.3,3445.8,3.945107]
[1718695329150,2.3375,3447.3,3445.9,2.90199]
[1718695329855,2.3375,3447.3,3446.0,2.95988988]
[1718695330062,2.3375,3447.3,3446.1,2.9018]
[1718695330249,2.3375,3447.3,3446.2,0.05802649]
[1718695330449,2.3375,3447.3,3446.3,0.64419423]
[1718695331183,2.3375,3447.3,3446.5,2.90149]
[1718695331487,2.3375,3447.3,3446.6,0.0580196]
[1718695333065,2.3375,3447.3,3446.3,3.48780865]
[1718695336291,2.3375,3447.3,3446.4,0.05802045]
[1718695336461,2.3375,3447.3,3446.5,0.59193291]
[1718695337191,2.3375,3447.3,3446.6,0.05802121]
[1718695337592,2.3375,3447.3,3446.5,0.59193291]
[1718695338273,2.3375,3447.3,3446.6,0.05802055]
[1718695338996,2.3375,3447.3,3446.5,0.59193291]
[1718695339203,2.3375,3447.3,3446.6,0.46599384]
[1718695339772,2.4179,3448.2,3446.8,2.90122]
[1718695339976,2.4179,3448.2,3446.9,0.05801509]
[1718695340368,2.4179,3448.2,3446.7,0.05801535]
[1718695341771,2.4179,3448.2,3446.6,0.40797416]
[1718695341981,2.4179,3448.0,3446.6,0.40797416]
[1718695342282,2.4179,3447.9,3446.6,0.40797416]
[1718695342473,2.4179,3447.9,3446.7,0.05802254]
[1718695342474,3.0,3447.9,3446.7,0.05802254]
[1718695342669,2.4179,3447.8,3446.6,0.40797416]
[1718695342875,2.4179,3447.7,3446.6,0.40797416]
[1718695346206,2.4179,3447.7,3446.7,0.05801851]
[1718695346889,2.4179,3447.7,3446.6,0.40797416]
[1718695347591,2.3545,3447.5,3446.6,1.26797416]
[1718695350630,2.3545,3447.5,3446.3,0.58616865]
[1718695350928,2.3545,3447.5,3445.3,2.90243]
[1718695350929,2.3956,3447.0,3445.8,2.90208]
[1718695351105,2.3956,3447.9,3446.2,2.90166]
[1718695351310,2.3956,3447.8,3446.9,0.86]
[1718695351835,2.3956,3447.8,3447.1,0.86]
[1718695352329,2.3956,3447.8,3447.1,1.24192453]
[1718695353355,2.3956,3447.8,3447.1,0.38192453]
[1718695353640,0.86,3447.6,3446.5,2.90149]
[1718695353823,2.4756,3447.5,3446.2,2.4791]
[1718695354022,2.4756,3447.5,3446.5,0.86]
[1718695354714,2.4756,3447.5,3446.7,0.86]
[1718695356442,2.3086,3447.1,3445.6,2.90216]
[1718695356747,2.3086,3447.1,3446.1,0.86]
[1718695359654,2.3223,3447.6,3445.8,5.90206]
[1718695360150,3.0,3447.4,3445.6,2.90224]
[1718695360364,2.319,3447.2,3445.5,0.464536]
[1718695360519,2.319,3447.2,3445.2,2.90258]
[1718695360722,2.319,3447.2,3445.3,2.90249]
[1718695362539,2.319,3447.1,3445.1,2.90266]
[1718695362855,2.319,3447.0,3445.2,5.96062167]
[1718695363023,2.319,3446.8,3445.3,0.94436979]
[1718695363620,2.319,3446.7,3445.3,0.94436979]
[1718695363817,2.319,3446.7,3445.3,3.84685979]
[1718695364156,2.319,3446.7,3445.3,3.78881817]
[1718695364348,2.319,3446.7,3445.4,4.07787482]
[1718695364957,2.319,3446.7,3445.5,2.90232]
[1718695367268,2.319,3446.7,3445.4,1.17554482]
[1718695367457,2.319,3446.7,3445.4,4.17554482]
[1718695367626,2.319,3446.7,3445.5,2.90233]
[1718695368029,2.319,3446.7,3445.6,3.65829127]
[1718695368260,2.319,3446.7,3445.6,5.72229127]
[1718695368559,2.319,3446.7,3445.6,2.82007127]
[1718695368927,2.319,3446.7,3445.8,2.90206]
[1718695369856,2.319,3446.7,3445.7,2.90214]
[1718695370058,2.319,3446.7,3445.8,0.85663565]
[1718695370449,2.319,3446.7,3445.6,2.76203648]